Workbook

Sheet OGE Report Format
A1: 1353 Travel Report for Securities and Exchange Commission, for the reporting period
A2: No. | B2: SEMIANNUAL REPORT OF PAYMENTS ACCEPTED FROM A NON-FEDERAL SOURCE | J2: PAGE | K2: OF PAGES | L2: YEAR
J3: 1 | K3: 3 | L3: 2020
B4: This report implements 31 U.S.C. § 1353. It does not supersede other reports that may have to be filed when travel expenses are accepted under other authority. For definitions and policies, see 41 CFR part 304-1.
B5: Securities and Exchange Commission | F5: X | G5: REPORTING PERIOD: OCTOBER 1, 2019 - MARCH 31, 2020 | I5: REPORTING PERIOD: APRIL 1, 2020 - SEPTEMBER 30, 2020 | K5: NEGATIVE REPORT
B7: Agency Contact: | C7: Richard Bamber | D7: BamberR@sec.gov
B8: TRAVELER | C8: EVENT DESCRIPTION & EVENT SPONSOR | D8: EVENT DATE(S) [MM/DD/YYYY-MM/DD/YYYY]: | E8: LOCATION/DATES | F8: BENEFIT SOURCE | I8: BENEFIT DESCRIPTION | J8: PAYMENT BY CHECK | K8: PAYMENT IN-KIND | L8: TOTAL AMOUNT
A10: 1 | B10: TRAVELER NAME | C10: EVENT DESCRIPTION | D10: BEGINNING DATE [MM/DD/YYYY] | E10: LOCATION | F10: BENEFIT SOURCE
B11: ADERTON, ADAM S | C11: HEDGE FUND AND PRIVATE EQUITY ENFORCEMENT & REGULATORY DEVELOPMENTS | D11: 2019-10-01 | E11: NEW YORK, NY | F11: PRACTICING LAW INSTITUTE | I11: Hotel | L11: 0
B12: TRAVELER TITLE | C12: EVENT SPONSOR | D12: ENDING DATE[MM/DD/YYYY] | E12: TRAVEL DATES | I12: Air Transportation | K12: X | L12: 302
B13: CO-CHIEF, ASSET MANAGEMENT UNIT | C13: PRACTICING LAW INSTITUTE | D13: 2019-10-01 | E13: 9/30/2019 - 10/1/2019 | I13: Meals | L13: 0
A15: 2 | B15: TRAVELER NAME | C15: EVENT DESCRIPTION | D15: BEGINNING DATE [MM/DD/YYYY] | E15: LOCATION | F15: BENEFIT SOURCE
B16: JACKSON, ROBERT | C16: BUILDING THE FINANCIAL SYSTEM OF THE 21ST CENTURY: AN AGENDA FOR JAPAN AND THE UNITED STATES | D16: 2019-10-04 | E16: ODAWARA, JAPAN | F16: PROGRAM ON INTERNATIONAL FINANCIAL SYSTEMS | I16: Hotel | K16: X | L16: 850
B17: TRAVELER TITLE | C17: EVENT SPONSOR | D17: ENDING DATE[MM/DD/YYYY] | E17: TRAVEL DATES | I17: Air Transportation | K17: X | L17: 5389.54
B18: COMMISSIONER | C18: PROGRAM ON INTERNATIONAL FINANCIAL SYSTEMS | D18: 2019-10-07 | E18: 10/4/2019 - 10/7/2019 | I18: Meals | L18: 0
A20: 3 | B20: TRAVELER NAME | C20: EVENT DESCRIPTION | D20: BEGINNING DATE [MM/DD/YYYY] | E20: LOCATION | F20: BENEFIT SOURCE
B21: JACQUES, MATTHEW | C21: SPEAK TO ACCOUNTING STUDENTS | D21: 2019-10-07 | E21: COLUMBUS, OH | F21: OHIO STATE UNIVERSITY | I21: Hotel | K21: X | L21: 310
B22: TRAVELER TITLE | C22: EVENT SPONSOR | D22: ENDING DATE[MM/DD/YYYY] | E22: TRAVEL DATES | I22: Air Transportation | K22: X | L22: 397.27
B23: CHIEF ACCOUNTANT | C23: OHIO STATE UNIVERSITY | D23: 2019-10-07 | E23: 10/6/2019 - 10/9/2019 | I23: Meals | L23: 0
A25: 4 | B25: TRAVELER NAME | C25: EVENT DESCRIPTION | D25: BEGINNING DATE [MM/DD/YYYY] | E25: LOCATION | F25: BENEFIT SOURCE
B26: GONZALEZ, LOURDES | C26: PROGRAM ON BD REGULATION | D26: 2019-10-10 | E26: NEW YORK, NY | F26: PRACTISING LAW INSTITUTE | I26: Hotel | K26: X | L26: 419
B27: TRAVELER TITLE | C27: EVENT SPONSOR | D27: ENDING DATE[MM/DD/YYYY] | E27: TRAVEL DATES | I27: Air Transportation | K27: X | L27: 386.6
B28: ASSISTANT CHIEF COUNSEL | C28: PRACTISING LAW INSTITUTE | D28: 2019-10-10 | E28: 2019-10-10 | I28: Meals | K28: X | L28: 242.95
A30: 5 | B30: TRAVELER NAME | C30: EVENT DESCRIPTION | D30: BEGINNING DATE [MM/DD/YYYY] | E30: LOCATION | F30: BENEFIT SOURCE
B31: ROY, RANDALL W | C31: REGULATION OF SECURITY-BASED SWAP DEALERS | D31: 2019-10-22 | E31: NEW YORK, NY | F31: PRACTICING LAW INSTITUTE | I31: Hotel | L31: 0
B32: TRAVELER TITLE | C32: EVENT SPONSOR | D32: ENDING DATE[MM/DD/YYYY] | E32: TRAVEL DATES | I32: Air Transportation | K32: X | L32: 366
B33: DEPUTY ASSOCIATE DIRECTOR | C33: PRACTICING LAW INSTITUTE | D33: 2019-10-22 | E33: 2019-10-22 | I33: Meals | L33: 0
A35: 6 | B35: TRAVELER NAME | C35: EVENT DESCRIPTION | D35: BEGINNING DATE [MM/DD/YYYY] | E35: LOCATION | F35: BENEFIT SOURCE
B36: MCGEE, CAROL | C36: ADVANCED SWAPS AND DERIVATIVES | D36: 2019-10-22 | E36: NEW YORK, NY | F36: PRACTISING LAW INSTITUTE | I36: Hotel | L36: 0
B37: TRAVELER TITLE | C37: EVENT SPONSOR | D37: ENDING DATE[MM/DD/YYYY] | E37: TRAVEL DATES | I37: Air Transportation | K37: X | L37: 366
B38: ASSISTANT DIRECTOR | C38: PRACTISING LAW INSTITUTE | D38: 2019-10-22 | E38: 2019-10-22 | I38: Meals | L38: 0
A40: 7 | B40: TRAVELER NAME | C40: EVENT DESCRIPTION | D40: BEGINNING DATE [MM/DD/YYYY] | E40: LOCATION | F40: BENEFIT SOURCE
B41: LEVIN, JOEL R | C41: 2019 MIDWEST SECURITIES CONFERENCE | D41: 2019-10-24 | E41: EAST LANSING, MI | F41: MICHIGAN STATE UNIVERSITY COLLEGE OF LAW | I41: Hotel | K41: X | L41: 191
B42: TRAVELER TITLE | C42: EVENT SPONSOR | D42: ENDING DATE[MM/DD/YYYY] | E42: TRAVEL DATES | I42: Air Transportation | K42: X | L42: 233.82
B43: DIRECTOR | C43: MICHIGAN STATE UNIVERSITY COLLEGE OF LAW | D43: 2019-10-25 | E43: 10/24/2019 - 10/25/2019 | I43: Meals | K43: X | L43: 63
A45: 8 | B45: TRAVELER NAME | C45: EVENT DESCRIPTION | D45: BEGINNING DATE [MM/DD/YYYY] | E45: LOCATION | F45: BENEFIT SOURCE
B46: BIRKENHEIER, JOHN E | C46: 2019 MIDWEST SECURITIES CONFERENCE | D46: 2019-10-24 | E46: EAST LANSING, MI | F46: MICHIGAN STATE UNIVERSITY COLLEGE OF LAW | I46: Hotel | K46: X | L46: 190.97
B47: TRAVELER TITLE | C47: EVENT SPONSOR | D47: ENDING DATE[MM/DD/YYYY] | E47: TRAVEL DATES | I47: Air Transportation | K47: X | L47: 254.01
B48: SUPERVISORY TRIAL COUNSEL | C48: MICHIGAN STATE UNIVERSITY COLLEGE OF LAW | D48: 2019-10-25 | E48: 10/24/2019 - 10/26/2019 | I48: Meals | L48: 0
A50: 9 | B50: TRAVELER NAME | C50: EVENT DESCRIPTION | D50: BEGINNING DATE [MM/DD/YYYY] | E50: LOCATION | F50: BENEFIT SOURCE
B51: MCCARTHY, JENNIFER E | C51: MIDWEST SECURITIES CONFERENCE | D51: 2019-10-25 | E51: EAST LANSING, MI | F51: MICHIGAN STATE UNIVERSITY COLLEGE OF LAW | I51: Hotel | L51: 0
B52: TRAVELER TITLE | C52: EVENT SPONSOR | D52: ENDING DATE[MM/DD/YYYY] | E52: TRAVEL DATES | I52: Air Transportation | K52: X | L52: 555.64
B53: ASSISTANT DIRECTOR | C53: MICHIGAN STATE UNIVERSITY COLLEGE OF LAW | D53: 2019-10-25 | E53: 2019-10-25 | I53: Meals | L53: 0
A55: 10 | B55: TRAVELER NAME | C55: EVENT DESCRIPTION | D55: BEGINNING DATE [MM/DD/YYYY] | E55: LOCATION | F55: BENEFIT SOURCE
B56: BARTELS, DAVID P | C56: 22ND ANNUAL CONFERENCE | D56: 2019-11-02 | E56: LONDON, ENGLAND | F56: INVESTOR REGULATION | I56: Hotel | K56: X | L56: 900
B57: TRAVELER TITLE | C57: EVENT SPONSOR | D57: ENDING DATE[MM/DD/YYYY] | E57: TRAVEL DATES | I57: Air Transportation | K57: X | L57: 938.83
B58: ASSOCIATE DIRECTOR | C58: INVESTOR REGULATION | D58: 2019-11-07 | E58: 11/2/2019 - 11/7/2019 | I58: Meals | L58: 0
A60: 11 | B60: TRAVELER NAME | C60: EVENT DESCRIPTION | D60: BEGINNING DATE [MM/DD/YYYY] | E60: LOCATION | F60: BENEFIT SOURCE
B61: CHANDRASEKHAR, CHARU | C61: LECTURE TO BUSINESS SCHOOL CLASS | D61: 2019-11-04 | E61: NEW ORLEANS, LA | F61: TULANE UNIVERSITY, AB FREEMAN SCHOOL OF BUSINESS | I61: Hotel | L61: 0
B62: TRAVELER TITLE | C62: EVENT SPONSOR | D62: ENDING DATE[MM/DD/YYYY] | E62: TRAVEL DATES | I62: Air Transportation | K62: X | L62: 450
B63: ASSISTANT REGIONAL DIRECTOR | C63: TULANE UNIVERSITY, AB FREEMAN SCHOOL OF BUSINESS | D63: 2019-11-04 | E63: 2019-11-04 | I63: Meals | L63: 0
A65: 12 | B65: TRAVELER NAME | C65: EVENT DESCRIPTION | D65: BEGINNING DATE [MM/DD/YYYY] | E65: LOCATION | F65: BENEFIT SOURCE
B66: MOFFATT, KYLE | C66: 51ST ANNUAL INSTITUTE ON SECURITIES REGULATION | D66: 2019-11-04 | E66: NEW YORK, NY | F66: PRACTICING LAW INSTITUTE | I66: Hotel | K66: X | L66: 400
B67: TRAVELER TITLE | C67: EVENT SPONSOR | D67: ENDING DATE[MM/DD/YYYY] | E67: TRAVEL DATES | I67: Air Transportation | K67: X | L67: 400
B68: ASSOCIATE DIRECTOR | C68: PRACTICING LAW INSTITUTE | D68: 2019-11-05 | E68: 11/4/2019 - 11/5/2019 | I68: Meals | L68: 0
A70: 13 | B70: TRAVELER NAME | C70: EVENT DESCRIPTION | D70: BEGINNING DATE [MM/DD/YYYY] | E70: LOCATION | F70: BENEFIT SOURCE
B71: CHION, ANTONIA | C71: SEC REGULATION OUTSIDE THE UNITED STATES | D71: 2019-11-04 | E71: LONDON, ENGLAND | F71: INVESTOR REGULATION | I71: Hotel | K71: X | L71: 870
B72: TRAVELER TITLE | C72: EVENT SPONSOR | D72: ENDING DATE[MM/DD/YYYY] | E72: TRAVEL DATES | I72: Air Transportation | K72: X | L72: 900
B73: ASSOCIATE DIRECTOR | C73: INVESTOR REGULATION | D73: 2019-11-10 | E73: 11/4/2019 - 11/10/2019 | I73: Meals | L73: 0
A75: 14 | B75: TRAVELER NAME | C75: EVENT DESCRIPTION | D75: BEGINNING DATE [MM/DD/YYYY] | E75: LOCATION | F75: BENEFIT SOURCE
B76: LUISI, SHELLY C | C76: 51ST ANNUAL INSTITUTE ON SECURITIES REGULATION | D76: 2019-11-04 | E76: NEW YORK, NY | F76: PRACTICING LAW INSTITUTE | I76: Hotel | L76: 0
B77: TRAVELER TITLE | C77: EVENT SPONSOR | D77: ENDING DATE[MM/DD/YYYY] | E77: TRAVEL DATES | I77: Air Transportation | K77: X | L77: 462
B78: ASSOCIATE DIRECTOR | C78: PRACTICING LAW INSTITUTE | D78: 2019-11-04 | E78: 2019-11-04 | I78: Meals | L78: 0
A80: 15 | B80: TRAVELER NAME | C80: EVENT DESCRIPTION | D80: BEGINNING DATE [MM/DD/YYYY] | E80: LOCATION | F80: BENEFIT SOURCE
B81: ZEPRALKA, JENNIFER | C81: 51ST ANNUAL INSTITUTE ON SECURITIES REGULATION | D81: 2019-11-04 | E81: NEW YORK, NY | F81: PRACTICING LAW INSTITUTE | I81: Hotel | L81: 0
B82: TRAVELER TITLE | C82: EVENT SPONSOR | D82: ENDING DATE[MM/DD/YYYY] | E82: TRAVEL DATES | I82: Air Transportation | K82: X | L82: 400
B83: OFFICE CHIEF | C83: PRACTICING LAW INSTITUTE | D83: 2019-11-06 | E83: 11/4/2019 - 11/6/2019 | I83: Meals | L83: 0
A85: 16 | B85: TRAVELER NAME | C85: EVENT DESCRIPTION | D85: BEGINNING DATE [MM/DD/YYYY] | E85: LOCATION | F85: BENEFIT SOURCE
B86: KELLY, MAVIS A | C86: SEC REGULATION OUTSIDE THE UNITED STATES | D86: 2019-11-04 | E86: LONDON, ENGLAND | F86: INVESTOR REGULATION | I86: Hotel | K86: X | L86: 923.6
B87: TRAVELER TITLE | C87: EVENT SPONSOR | D87: ENDING DATE[MM/DD/YYYY] | E87: TRAVEL DATES | I87: Air Transportation | K87: X | L87: 859.23
B88: ASSISTANT DIRECTOR | C88: INVESTOR REGULATION | D88: 2019-11-06 | E88: 11/4/2019 - 11/6/2019 | I88: Meals | L88: 0
A90: 17 | B90: TRAVELER NAME | C90: EVENT DESCRIPTION | D90: BEGINNING DATE [MM/DD/YYYY] | E90: LOCATION | F90: BENEFIT SOURCE
B91: AVAKIAN, STEPHANIE | C91: SEC REGULATION OUTSIDE THE UNITED STATES | D91: 2019-11-04 | E91: LONDON, ENGLAND | F91: INVESTOR REGULATION | I91: Hotel | K91: X | L91: 217.5
B92: TRAVELER TITLE | C92: EVENT SPONSOR | D92: ENDING DATE[MM/DD/YYYY] | E92: TRAVEL DATES | I92: Air Transportation | K92: X | L92: 1752.51
B93: CO-DIRECTOR | C93: INVESTOR REGULATION | D93: 2019-11-05 | E93: 11/4/2019 - 11/5/2019 | I93: Meals | L93: 100
A95: 18 | B95: TRAVELER NAME | C95: EVENT DESCRIPTION | D95: BEGINNING DATE [MM/DD/YYYY] | E95: LOCATION | F95: BENEFIT SOURCE
B96: SUMMER, BARRY | C96: SEC REGULATION OUTSIDE THE UNITED STATES | D96: 2019-11-05 | E96: LONDON, ENGLAND | F96: INVESTOR REGULATION | I96: Hotel | L96: 0
B97: TRAVELER TITLE | C97: EVENT SPONSOR | D97: ENDING DATE[MM/DD/YYYY] | E97: TRAVEL DATES | I97: Air Transportation | K97: X | L97: 856
B98: ASSOCIATE DIRECTOR | C98: INVESTOR REGULATION | D98: 2019-11-05 | E98: 11/2/2019 - 11/6/2019 | I98: Meals | L98: 0
A100: 19 | B100: TRAVELER NAME | C100: EVENT DESCRIPTION | D100: BEGINNING DATE [MM/DD/YYYY] | E100: LOCATION | F100: BENEFIT SOURCE
B101: CHALK, CHRISTINA | C101: 51ST ANNUAL INSTITUTE ON SECURITIES REGULATION | D101: 2019-11-05 | E101: NEW YORK, NY | F101: PRACTICING LAW INSTITUTE | I101: Hotel | L101: 0
B102: TRAVELER TITLE | C102: EVENT SPONSOR | D102: ENDING DATE[MM/DD/YYYY] | E102: TRAVEL DATES | I102: Air Transportation | K102: X | L102: 432
B103: SENIOR SPECIAL COUNSEL | C103: PRACTICING LAW INSTITUTE | D103: 2019-11-05 | E103: 2019-11-05 | I103: Meals | L103: 0
A105: 20 | B105: TRAVELER NAME | C105: EVENT DESCRIPTION | D105: BEGINNING DATE [MM/DD/YYYY] | E105: LOCATION | F105: BENEFIT SOURCE
B106: ALEXANDER, CINDY | C106: LAW AND ECONOMICS SEMINAR | D106: 2019-11-18 | E106: CHARLOTTESVILLE, VA | F106: UNIVERSITY OF VIRGINIA SCHOOL OF LAW | I106: Hotel | K106: X | L106: 400
B107: TRAVELER TITLE | C107: EVENT SPONSOR | D107: ENDING DATE[MM/DD/YYYY] | E107: TRAVEL DATES | I107: Air Transportation | L107: 0
B108: FINANCIAL ECONOMIST | C108: UNIVERSITY OF VIRGINIA SCHOOL OF LAW | D108: 2019-11-20 | E108: 11/18/2019 - 11/20/2019 | I108: Meals | L108: 0
A110: 21 | B110: TRAVELER NAME | C110: EVENT DESCRIPTION | D110: BEGINNING DATE [MM/DD/YYYY] | E110: LOCATION | F110: BENEFIT SOURCE
B111: JACKSON, ROBERT | C111: LECTURE ON THE 45TH ANNIVERSARY OF COMMISSIONER AA SOMMER'S NOTRE DAME ADDRESS | D111: 2019-11-22 | E111: SOUTH BEND, IN | F111: NOTRE DAME UNIVERSITY - MENDOZA COLLEGE OF BUSINESS | I111: Hotel | K111: X | L111: 350
B112: TRAVELER TITLE | C112: EVENT SPONSOR | D112: ENDING DATE[MM/DD/YYYY] | E112: TRAVEL DATES | I112: Air Transportation | K112: X | L112: 739.06
B113: COMMISSIONER | C113: NOTRE DAME UNIVERSITY - MENDOZA COLLEGE OF BUSINESS | D113: 2019-11-22 | E113: 11/21/2019 - 11/23/2019 | I113: Meals | L113: 0
A115: 22 | B115: TRAVELER NAME | C115: EVENT DESCRIPTION | D115: BEGINNING DATE [MM/DD/YYYY] | E115: LOCATION | F115: BENEFIT SOURCE
B116: ARMELIN, PATRICIA | C116: 35TH ANNUAL SEC REPORTING AND FASB FORUM | D116: 2019-12-01 | E116: SAN FRANCISCO, CA | F116: PRACTISING LAW INSTITIUTE | I116: Hotel | K116: X | L116: 290.46
B117: TRAVELER TITLE | C117: EVENT SPONSOR | D117: ENDING DATE[MM/DD/YYYY] | E117: TRAVEL DATES | I117: Air Transportation | K117: X | L117: 1252.6
B118: ASSOCIATE CHIEF ACCOUNTANT | C118: PRACTISING LAW INSTITIUTE | D118: 2019-12-02 | E118: 12/1/2019 - 12/2/2019 | I118: Meals | L118: 0
A120: 23 | B120: TRAVELER NAME | C120: EVENT DESCRIPTION | D120: BEGINNING DATE [MM/DD/YYYY] | E120: LOCATION | F120: BENEFIT SOURCE
B121: DEANE, STEPHEN | C121: ASSET MANAGEMENT, INDEX FUNDS AND ETFS | D121: 2019-12-09 | E121: NEW HAVEN, CT | F121: YALE LAW SCHOOL CENTER FOR THE STUDY OF CORPORATE LAW | I121: Hotel | K121: X | L121: 772
B122: TRAVELER TITLE | C122: EVENT SPONSOR | D122: ENDING DATE[MM/DD/YYYY] | E122: TRAVEL DATES | I122: Air Transportation | L122: 0
B123: ENGAGEMENT ADVISOR | C123: YALE LAW SCHOOL CENTER FOR THE STUDY OF CORPORATE LAW | D123: 2019-12-09 | E123: 12/8/2019 - 12/10/2019 | I123: Meals | L123: 0
A125: 24 | B125: TRAVELER NAME | C125: EVENT DESCRIPTION | D125: BEGINNING DATE [MM/DD/YYYY] | E125: LOCATION | F125: BENEFIT SOURCE
B126: BLASS, DALIA | C126: 2019 WEIL, GOTSHAL & MANGES ROUNDTABLE | D126: 2019-12-09 | E126: NEW HAVEN, CT | F126: YALE LAW SCHOOL CENTER FOR THE STUDY OF CORPORATE LAW | I126: Hotel | L126: 0
B127: TRAVELER TITLE | C127: EVENT SPONSOR | D127: ENDING DATE[MM/DD/YYYY] | E127: TRAVEL DATES | I127: Air Transportation | K127: X | L127: 521.82
B128: DIRECTOR | C128: YALE LAW SCHOOL CENTER FOR THE STUDY OF CORPORATE LAW | D128: 2019-12-09 | E128: 2019-12-09 | I128: Meals | L128: 0
A130: 25 | B130: TRAVELER NAME | C130: EVENT DESCRIPTION | D130: BEGINNING DATE [MM/DD/YYYY] | E130: LOCATION | F130: BENEFIT SOURCE
B131: JACKSON, ROBERT | C131: EMERGING MARKETS FINANCE CONFERENCE | D131: 2019-12-12 | E131: MUMBAI, INDIA | F131: VANDERBILT LAW SCHOOL | I131: Hotel | K131: X | L131: 500
B132: TRAVELER TITLE | C132: EVENT SPONSOR | D132: ENDING DATE[MM/DD/YYYY] | E132: TRAVEL DATES | I132: Air Transportation | K132: X | L132: 1843.82
B133: COMMISSIONER | C133: VANDERBILT LAW SCHOOL | D133: 2019-12-14 | E133: 12/11/2019 - 12/15/2019 | I133: Meals | L133: 0
A135: 26 | B135: TRAVELER NAME | C135: EVENT DESCRIPTION | D135: BEGINNING DATE [MM/DD/YYYY] | E135: LOCATION | F135: BENEFIT SOURCE
B136: GILMORE, PATRICK | C136: ANNUAL SEC REPORTING & FASB FORUM | D136: 2019-12-15 | E136: NEW YORK, NY | F136: PRACTISING LAW INSTITUTE | I136: Hotel | K136: X | L136: 237
B137: TRAVELER TITLE | C137: EVENT SPONSOR | D137: ENDING DATE[MM/DD/YYYY] | E137: TRAVEL DATES | I137: Air Transportation | K137: X | L137: 400
B138: DEPUTY CHIEF ACCOUNTANT | C138: PRACTISING LAW INSTITUTE | D138: 2019-12-16 | E138: 12/15/2019 -12/16/2019 | I138: Meals | L138: 0
A140: 27 | B140: TRAVELER NAME | C140: EVENT DESCRIPTION | D140: BEGINNING DATE [MM/DD/YYYY] | E140: LOCATION | F140: BENEFIT SOURCE
B141: YU, TED | C141: “MERGERS & ACQUISITIONS 2020: ADVANCED TRENDS AND DEVELOPMENTS" | D141: 2020-01-08 | E141: NEW YORK, NY | F141: PRACTISING LAW INSTITUTE | I141: Hotel | K141: X | L141: 199
B142: TRAVELER TITLE | C142: EVENT SPONSOR | D142: ENDING DATE[MM/DD/YYYY] | E142: TRAVEL DATES | I142: Air Transportation | K142: X | L142: 366
B143: OFFICE CHIEF | C143: PRACTISING LAW INSTITUTE | D143: 2020-01-09 | E143: 1/8/2020 - 1/9/2020 | I143: Meals | L143: 0
A145: 28 | B145: TRAVELER NAME | C145: EVENT DESCRIPTION | D145: BEGINNING DATE [MM/DD/YYYY] | E145: LOCATION | F145: BENEFIT SOURCE
B146: JACKSON, ROBERT | C146: RICE UNIVERSITY VISIT | D146: 2020-01-16 | E146: HOUSTON, TX | F146: RICE UNIVERSITY | I146: Hotel | K146: X | L146: 223.95
B147: TRAVELER TITLE | C147: EVENT SPONSOR | D147: ENDING DATE[MM/DD/YYYY] | E147: TRAVEL DATES | I147: Air Transportation | K147: X | L147: 897.38
B148: COMMISSIONER | C148: RICE UNIVERSITY | D148: 2020-01-17 | E148: 1/15/2020 - 1/17/2020 | I148: Meals | L148: 0
A150: 29 | B150: TRAVELER NAME | C150: EVENT DESCRIPTION | D150: BEGINNING DATE [MM/DD/YYYY] | E150: LOCATION | F150: BENEFIT SOURCE
B151: HU, EDWIN | C151: RICE UNIVERSITY VISIT | D151: 2020-01-16 | E151: HOUSTON, TX | F151: RICE UNIVERSITY | I151: Hotel | K151: X | L151: 212.25
B152: TRAVELER TITLE | C152: EVENT SPONSOR | D152: ENDING DATE[MM/DD/YYYY] | E152: TRAVEL DATES | I152: Air Transportation | K152: X | L152: 392.6
B153: COUNSEL TO COMMISSIONER | C153: RICE UNIVERSITY | D153: 2020-01-17 | E153: 1/16/2020 - 1/17/2020 | I153: Meals | L153: 0
A155: 30 | B155: TRAVELER NAME | C155: EVENT DESCRIPTION | D155: BEGINNING DATE [MM/DD/YYYY] | E155: LOCATION | F155: BENEFIT SOURCE
B156: JACKSON, ROBERT | C156: UBC FINANCE SEMINAR | D156: 2020-01-30 | E156: VANCOUVER, CANADA | F156: UNIVERSITY OF BRITISH COLUMBIA | I156: Hotel | K156: X | L156: 487
B157: TRAVELER TITLE | C157: EVENT SPONSOR | D157: ENDING DATE[MM/DD/YYYY] | E157: TRAVEL DATES | I157: Air Transportation | K157: X | L157: 400
B158: COMMISSIONER | C158: UNIVERSITY OF BRITISH COLUMBIA | D158: 2020-01-31 | E158: 1/30/2020 - 1/31/2020 | I158: Meals | L158: 0
A160: 31 | B160: TRAVELER NAME | C160: EVENT DESCRIPTION | D160: BEGINNING DATE [MM/DD/YYYY] | E160: LOCATION | F160: BENEFIT SOURCE
B161: JACKSON, ROBERT | C161: UNIVERSITY OF UTAH'S LAW, ECONOMICS & BUSINESS COLLOQUIUM | D161: 2020-02-02 | E161: SALT LAKE CITY, UT | F161: UNIVERSITY OF UTAH | I161: Hotel | K161: X | L161: 467.3
B162: TRAVELER TITLE | C162: EVENT SPONSOR | D162: ENDING DATE[MM/DD/YYYY] | E162: TRAVEL DATES | I162: Air Transportation | K162: X | L162: 430.24
B163: COMMISSIONER | C163: UNIVERSITY OF UTAH | D163: 2020-02-03 | E163: 2/2/2020 - 2/3/2020 | I163: Meals | L163: 0
A165: 32 | B165: TRAVELER NAME | C165: EVENT DESCRIPTION | D165: BEGINNING DATE [MM/DD/YYYY] | E165: LOCATION | F165: BENEFIT SOURCE
B166: VANOSDALL, JOHN P | C166: ANNUAL SECURITIES REGULATION IN EUROPE | D166: 2020-02-06 | E166: LONDON, ENGLAND | F166: PRACTISING LAW INSTITUTE | I166: Hotel | K166: X | L166: 600
B167: TRAVELER TITLE | C167: EVENT SPONSOR | D167: ENDING DATE[MM/DD/YYYY] | E167: TRAVEL DATES | I167: Air Transportation | K167: X | L167: 2604
B168: DEPUTY CHIEF ACCOUNTANT | C168: PRACTISING LAW INSTITUTE | D168: 2020-02-07 | E168: 2/6/2020 - 2/7/2020 | I168: Meals | L168: 0
A170: 33 | B170: TRAVELER NAME | C170: EVENT DESCRIPTION | D170: BEGINNING DATE [MM/DD/YYYY] | E170: LOCATION | F170: BENEFIT SOURCE
B171: HINMAN, WILLIAM | C171: 19TH ANNUAL INSTITUTE ON SECURITIES REGULATION IN EUROPE | D171: 2020-02-06 | E171: LONDON, ENGLAND | F171: PRACTISING LAW INSTITUTE | I171: Hotel | K171: X | L171: 608
B172: TRAVELER TITLE | C172: EVENT SPONSOR | D172: ENDING DATE[MM/DD/YYYY] | E172: TRAVEL DATES | I172: Air Transportation | K172: X | L172: 998.68
B173: DIRECTOR | C173: PRACTISING LAW INSTITUTE | D173: 2020-02-07 | E173: 2/5/2020 - 2/9/2020 | I173: Meals | L173: 0
A175: 34 | B175: TRAVELER NAME | C175: EVENT DESCRIPTION | D175: BEGINNING DATE [MM/DD/YYYY] | E175: LOCATION | F175: BENEFIT SOURCE
B176: BANDY, ANITA | C176: 19TH ANNUAL INSTITUTE ON SECURITIES REGULATION IN EUROPE | D176: 2020-02-06 | E176: LONDON, ENGLAND | F176: PRACTISING LAW INSTITUTE | I176: Hotel | K176: X | L176: 1520
B177: TRAVELER TITLE | C177: EVENT SPONSOR | D177: ENDING DATE[MM/DD/YYYY] | E177: TRAVEL DATES | I177: Air Transportation | K177: X | L177: 872.05
B178: ASSOCIATE DIRECTOR | C178: PRACTISING LAW INSTITUTE | D178: 2020-02-07 | E178: 2/4/2020 - 2/9/2020 | I178: Meals | L178: 0
A180: 35 | B180: TRAVELER NAME | C180: EVENT DESCRIPTION | D180: BEGINNING DATE [MM/DD/YYYY] | E180: LOCATION | F180: BENEFIT SOURCE
B181: TEN SIETHOFF, SARAH | C181: REG BI CONFERENCE | D181: 2020-02-10 | E181: AUSTIN, TX | F181: THE UNIVERSITY OF TEXAS AT AUSTIN | I181: Hotel | L181: 0
B182: TRAVELER TITLE | C182: EVENT SPONSOR | D182: ENDING DATE[MM/DD/YYYY] | E182: TRAVEL DATES | I182: Air Transportation | K182: X | L182: 376
B183: ASSOCIATE DIRECTOR | C183: THE UNIVERSITY OF TEXAS AT AUSTIN | D183: 2020-02-11 | E183: 2/9/2020 - 2/11/2020 | I183: Meals | K183: X | L183: 100
A185: 36 | B185: TRAVELER NAME | C185: EVENT DESCRIPTION | D185: BEGINNING DATE [MM/DD/YYYY] | E185: LOCATION | F185: BENEFIT SOURCE
B186: GONZALEZ, LOURDES | C186: PROGRAM ON REGULATION BEST INTEREST | D186: 2020-02-20 | E186: NEW YORK, NY | F186: PRACTISING LAW INSTITUTE | I186: Hotel | L186: 0
B187: TRAVELER TITLE | C187: EVENT SPONSOR | D187: ENDING DATE[MM/DD/YYYY] | E187: TRAVEL DATES | I187: Air Transportation | K187: X | L187: 696.81
B188: ASSISTANT CHIEF COUNSEL - SALES PRACTICES | C188: PRACTISING LAW INSTITUTE | D188: 2020-02-20 | E188: 2/19/2020 - 2/20/2020 | I188: Meals | K188: X | L188: 182.6
A190: 37 | B190: TRAVELER NAME | C190: EVENT DESCRIPTION | D190: BEGINNING DATE [MM/DD/YYYY] | E190: LOCATION | F190: BENEFIT SOURCE
B191: JACQUES, MATTHEW | C191: ACCOUNTING FRAUD | D191: 2020-03-04 | E191: PHILDELPHIA, PA | F191: THE WHARTON SCHOOL | I191: Hotel | L191: 0
B192: TRAVELER TITLE | C192: EVENT SPONSOR | D192: ENDING DATE[MM/DD/YYYY] | E192: TRAVEL DATES | I192: Air Transportation | K192: X | L192: 277.52
B193: CHIEF ACCOUNTANT | C193: THE WHARTON SCHOOL | D193: 2020-03-05 | E193: 3/4/2020 -3/5/2020 | I193: Meals | L193: 0
A195: 38 | B195: TRAVELER NAME | C195: EVENT DESCRIPTION | D195: BEGINNING DATE [MM/DD/YYYY] | E195: LOCATION | F195: BENEFIT SOURCE
B196: AVAKIAN, STEPHANIE | C196: SEC ENFORCEMENT | D196: 2020-03-04 | E196: PRINCETON, NJ | F196: PRINCETON UNIVERSITY | I196: Hotel | K196: X | L196: 172
B197: TRAVELER TITLE | C197: EVENT SPONSOR | D197: ENDING DATE[MM/DD/YYYY] | E197: TRAVEL DATES | I197: Air Transportation | K197: X | L197: 230
B198: CO-DIRECTOR | C198: PRINCETON UNIVERSITY | D198: 2020-03-05 | E198: 3/4/2020 -3/5/2020 | I198: Meals | K198: X | L198: 75
A200: 39 | B200: TRAVELER NAME | C200: EVENT DESCRIPTION | D200: BEGINNING DATE [MM/DD/YYYY] | E200: LOCATION | F200: BENEFIT SOURCE
B201: TEOTIA, SAGAR | C201: CORPORATE GOVERNANCE | D201: 2020-03-06 | E201: NEW YORK, NY | F201: PRACTISING LAW INSTITUTE | I201: Hotel | K201: X | L201: 262
B202: TRAVELER TITLE | C202: EVENT SPONSOR | D202: ENDING DATE[MM/DD/YYYY] | E202: TRAVEL DATES | I202: Air Transportation | K202: X | L202: 498
B203: CHIEF ACCOUNTANT | C203: PRACTISING LAW INSTITUTE | D203: 2020-03-06 | E203: 2020-03-06 | I203: Meals | L203: 0

Sheet OGE Report Input
J1: PAYMENT BY CHECK | N1: PAYMENT IN-KIND | R1: TOTAL AMOUNTS
A2: TRAVELER NAME | B2: TRAVELER TITLE | C2: EVENT DESCRIPTION | D2: EVENT SPONSOR | E2: BEGINNING DATE [MM/DD/YYYY] | F2: ENDING DATE [MM/DD/YYYY] | G2: LOCATION | H2: TRAVEL DATE(S) | I2: BENEFIT SOURCE | J2: HOTEL | K2: AIR TRANSPORTATION | L2: MEALS | N2: HOTEL | O2: AIR TRANSPORTATION | P2: MEALS | R2: HOTEL | S2: AIR TRANSPORTATION | T2: MEALS
A3: ADERTON, ADAM S | B3: CO-CHIEF, ASSET MANAGEMENT UNIT | C3: HEDGE FUND AND PRIVATE EQUITY ENFORCEMENT & REGULATORY DEVELOPMENTS | D3: PRACTICING LAW INSTITUTE | E3: 2019-10-01 | F3: 2019-10-01 | G3: NEW YORK, NY | H3: 9/30/2019 - 10/1/2019 | I3: =D3 -> PRACTICING LAW INSTITUTE | O3: X | S3: 302 | U3: =SUM(R3:T3) -> 302
A4: JACKSON, ROBERT | B4: COMMISSIONER | C4: BUILDING THE FINANCIAL SYSTEM OF THE 21ST CENTURY: AN AGENDA FOR JAPAN AND THE UNITED STATES | D4: PROGRAM ON INTERNATIONAL FINANCIAL SYSTEMS | E4: 10/4/2019 | F4: 10/7/2019 | G4: ODAWARA, JAPAN | H4: 10/4/2019 - 10/7/2019 | I4: PROGRAM ON INTERNATIONAL FINANCIAL SYSTEMS | N4: X | O4: X | R4: 850 | S4: 5389.54 | U4: 6239.54
A5: JACQUES, MATTHEW | B5: CHIEF ACCOUNTANT | C5: SPEAK TO ACCOUNTING STUDENTS | D5: OHIO STATE UNIVERSITY | E5: 2019-10-07 | F5: 2019-10-07 | G5: COLUMBUS, OH | H5: 10/6/2019 - 10/9/2019 | I5: =D5 -> OHIO STATE UNIVERSITY | N5: X | O5: X | R5: 310 | S5: 397.27 | U5: 707.27
A6: GONZALEZ, LOURDES | B6: ASSISTANT CHIEF COUNSEL | C6: PROGRAM ON BD REGULATION | D6: PRACTISING LAW INSTITUTE | E6: 2019-10-10 | F6: 2019-10-10 | G6: NEW YORK, NY | H6: 2019-10-10 | I6: =D6 -> PRACTISING LAW INSTITUTE | N6: X | O6: X | P6: X | R6: 419 | S6: 386.6 | T6: 242.95 | U6: 1048.55
A7: ROY, RANDALL W | B7: DEPUTY ASSOCIATE DIRECTOR | C7: REGULATION OF SECURITY-BASED SWAP DEALERS | D7: PRACTICING LAW INSTITUTE | E7: 2019-10-22 | F7: 2019-10-22 | G7: NEW YORK, NY | H7: 2019-10-22 | I7: =D7 -> PRACTICING LAW INSTITUTE | O7: X | S7: 366 | U7: 366
A8: MCGEE, CAROL | B8: ASSISTANT DIRECTOR | C8: ADVANCED SWAPS AND DERIVATIVES | D8: PRACTISING LAW INSTITUTE | E8: 2019-10-22 | F8: 2019-10-22 | G8: NEW YORK, NY | H8: 2019-10-22 | I8: =D8 -> PRACTISING LAW INSTITUTE | O8: X | S8: 366 | U8: 366
A9: LEVIN, JOEL R | B9: DIRECTOR | C9: 2019 MIDWEST SECURITIES CONFERENCE | D9: MICHIGAN STATE UNIVERSITY COLLEGE OF LAW | E9: 2019-10-24 | F9: 2019-10-25 | G9: EAST LANSING, MI | H9: 10/24/2019 - 10/25/2019 | I9: MICHIGAN STATE UNIVERSITY COLLEGE OF LAW | N9: X | O9: X | P9: X | R9: 191 | S9: 233.82 | T9: 63 | U9: =SUM(R9:T9) -> 487.82
A10: BIRKENHEIER, JOHN E | B10: SUPERVISORY TRIAL COUNSEL | C10: 2019 MIDWEST SECURITIES CONFERENCE | D10: MICHIGAN STATE UNIVERSITY COLLEGE OF LAW | E10: 2019-10-24 | F10: 2019-10-25 | G10: EAST LANSING, MI | H10: 10/24/2019 - 10/26/2019 | I10: MICHIGAN STATE UNIVERSITY COLLEGE OF LAW | N10: X | O10: X | R10: 190.97 | S10: 254.01 | U10: 444.98
A11: MCCARTHY, JENNIFER E | B11: ASSISTANT DIRECTOR | C11: MIDWEST SECURITIES CONFERENCE | D11: MICHIGAN STATE UNIVERSITY COLLEGE OF LAW | E11: 2019-10-25 | F11: 2019-10-25 | G11: EAST LANSING, MI | H11: 2019-10-25 | I11: =D11 -> MICHIGAN STATE UNIVERSITY COLLEGE OF LAW | O11: X | S11: 555.64 | U11: =SUM(R11:T11) -> 555.64
A12: BARTELS, DAVID P | B12: ASSOCIATE DIRECTOR | C12: 22ND ANNUAL CONFERENCE | D12: INVESTOR REGULATION | E12: 2019-11-02 | F12: 2019-11-07 | G12: LONDON, ENGLAND | H12: 11/2/2019 - 11/7/2019 | I12: INVESTOR REGULATION | N12: X | O12: X | R12: 900 | S12: 938.83 | U12: 1838.83
A13: CHANDRASEKHAR, CHARU | B13: ASSISTANT REGIONAL DIRECTOR | C13: LECTURE TO BUSINESS SCHOOL CLASS | D13: TULANE UNIVERSITY, AB FREEMAN SCHOOL OF BUSINESS | E13: 2019-11-04 | F13: 2019-11-04 | G13: NEW ORLEANS, LA | H13: 2019-11-04 | I13: =D13 -> TULANE UNIVERSITY, AB FREEMAN SCHOOL OF BUSINESS | O13: X | S13: 450 | U13: =SUM(R13:T13) -> 450
A14: MOFFATT, KYLE | B14: ASSOCIATE DIRECTOR | C14: 51ST ANNUAL INSTITUTE ON SECURITIES REGULATION | D14: PRACTICING LAW INSTITUTE | E14: 2019-11-04 | F14: 2019-11-05 | G14: NEW YORK, NY | H14: 11/4/2019 - 11/5/2019 | I14: PRACTICING LAW INSTITUTE | N14: X | O14: X | R14: 400 | S14: 400 | U14: 800
A15: CHION, ANTONIA | B15: ASSOCIATE DIRECTOR | C15: SEC REGULATION OUTSIDE THE UNITED STATES | D15: INVESTOR REGULATION | E15: 2019-11-04 | F15: 2019-11-10 | G15: LONDON, ENGLAND | H15: 11/4/2019 - 11/10/2019 | I15: INVESTOR REGULATION | N15: X | O15: X | R15: 870 | S15: 900 | U15: 1770
A16: LUISI, SHELLY C | B16: ASSOCIATE DIRECTOR | C16: 51ST ANNUAL INSTITUTE ON SECURITIES REGULATION | D16: PRACTICING LAW INSTITUTE | E16: 2019-11-04 | F16: 2019-11-04 | G16: NEW YORK, NY | H16: 2019-11-04 | I16: PRACTICING LAW INSTITUTE | O16: X | S16: 462 | U16: 462
A17: ZEPRALKA, JENNIFER | B17: OFFICE CHIEF | C17: 51ST ANNUAL INSTITUTE ON SECURITIES REGULATION | D17: PRACTICING LAW INSTITUTE | E17: 2019-11-04 | F17: 2019-11-06 | G17: NEW YORK, NY | H17: 11/4/2019 - 11/6/2019 | I17: PRACTICING LAW INSTITUTE | O17: X | S17: 400 | U17: 400
A18: KELLY, MAVIS A | B18: ASSISTANT DIRECTOR | C18: SEC REGULATION OUTSIDE THE UNITED STATES | D18: INVESTOR REGULATION | E18: 2019-11-04 | F18: 2019-11-06 | G18: LONDON, ENGLAND | H18: 11/4/2019 - 11/6/2019 | I18: INVESTOR REGULATION | N18: X | O18: X | R18: 923.6 | S18: 859.23 | U18: 1782.83
A19: AVAKIAN, STEPHANIE | B19: CO-DIRECTOR | C19: SEC REGULATION OUTSIDE THE UNITED STATES | D19: INVESTOR REGULATION | E19: 2019-11-04 | F19: 2019-11-05 | G19: LONDON, ENGLAND | H19: 11/4/2019 - 11/5/2019 | I19: INVESTOR REGULATION | N19: X | O19: X | R19: 217.5 | S19: 1752.51 | T19: 100 | U19: 2070.01
A20: SUMMER, BARRY | B20: ASSOCIATE DIRECTOR | C20: SEC REGULATION OUTSIDE THE UNITED STATES | D20: INVESTOR REGULATION | E20: 2019-11-05 | F20: 2019-11-05 | G20: LONDON, ENGLAND | H20: 11/2/2019 - 11/6/2019 | I20: INVESTOR REGULATION | O20: X | S20: 856 | U20: 856
A21: CHALK, CHRISTINA | B21: SENIOR SPECIAL COUNSEL | C21: 51ST ANNUAL INSTITUTE ON SECURITIES REGULATION | D21: PRACTICING LAW INSTITUTE | E21: 2019-11-05 | F21: 2019-11-05 | G21: NEW YORK, NY | H21: 2019-11-05 | I21: PRACTICING LAW INSTITUTE | O21: X | S21: 432 | U21: =SUM(R21:T21) -> 432
A22: ALEXANDER, CINDY | B22: FINANCIAL ECONOMIST | C22: LAW AND ECONOMICS SEMINAR | D22: UNIVERSITY OF VIRGINIA SCHOOL OF LAW | E22: 2019-11-18 | F22: 2019-11-20 | G22: CHARLOTTESVILLE, VA | H22: 11/18/2019 - 11/20/2019 | I22: =D22 -> UNIVERSITY OF VIRGINIA SCHOOL OF LAW | N22: X | R22: 400 | U22: =SUM(R22:T22) -> 400
A23: JACKSON, ROBERT | B23: COMMISSIONER | C23: LECTURE ON THE 45TH ANNIVERSARY OF COMMISSIONER AA SOMMER'S NOTRE DAME ADDRESS | D23: NOTRE DAME UNIVERSITY - MENDOZA COLLEGE OF BUSINESS | E23: 2019-11-22 | F23: 2019-11-22 | G23: SOUTH BEND, IN | H23: 11/21/2019 - 11/23/2019 | I23: NOTRE DAME UNIVERSITY - MENDOZA COLLEGE OF BUSINESS | N23: X | O23: X | R23: 350 | S23: 739.06 | U23: 1089.06
A24: ARMELIN, PATRICIA | B24: ASSOCIATE CHIEF ACCOUNTANT | C24: 35TH ANNUAL SEC REPORTING AND FASB FORUM | D24: PRACTISING LAW INSTITIUTE | E24: 2019-12-01 | F24: 2019-12-02 | G24: SAN FRANCISCO, CA | H24: 12/1/2019 - 12/2/2019 | I24: PRACTISING LAW INSTITIUTE | N24: X | O24: X | R24: 290.46 | S24: 1252.6 | U24: 1543.06
A25: DEANE, STEPHEN | B25: ENGAGEMENT ADVISOR | C25: ASSET MANAGEMENT, INDEX FUNDS AND ETFS | D25: YALE LAW SCHOOL CENTER FOR THE STUDY OF CORPORATE LAW | E25: 2019-12-09 | F25: 2019-12-09 | G25: NEW HAVEN, CT | H25: 12/8/2019 - 12/10/2019 | I25: =D25 -> YALE LAW SCHOOL CENTER FOR THE STUDY OF CORPORATE LAW | N25: X | R25: 772 | U25: =SUM(R25:T25) -> 772
A26: BLASS, DALIA | B26: DIRECTOR | C26: 2019 WEIL, GOTSHAL & MANGES ROUNDTABLE | D26: YALE LAW SCHOOL CENTER FOR THE STUDY OF CORPORATE LAW | E26: 2019-12-09 | F26: 2019-12-09 | G26: NEW HAVEN, CT | H26: 2019-12-09 | I26: =D26 -> YALE LAW SCHOOL CENTER FOR THE STUDY OF CORPORATE LAW | O26: X | S26: 521.82 | U26: =SUM(R26:T26) -> 521.82
A27: JACKSON, ROBERT | B27: COMMISSIONER | C27: EMERGING MARKETS FINANCE CONFERENCE | D27: VANDERBILT LAW SCHOOL | E27: 2019-12-12 | F27: 2019-12-14 | G27: MUMBAI, INDIA | H27: 12/11/2019 - 12/15/2019 | I27: VANDERBILT LAW SCHOOL | N27: X | O27: X | R27: 500 | S27: 1843.82 | U27: 2343.82
A28: GILMORE, PATRICK | B28: DEPUTY CHIEF ACCOUNTANT | C28: ANNUAL SEC REPORTING & FASB FORUM | D28: PRACTISING LAW INSTITUTE | E28: 2019-12-15 | F28: 2019-12-16 | G28: NEW YORK, NY | H28: 12/15/2019 -12/16/2019 | I28: PRACTISING LAW INSTITUTE | N28: X | O28: X | R28: 237 | S28: 400 | U28: =SUM(R28:T28) -> 637
A29: YU, TED | B29: OFFICE CHIEF | C29: “MERGERS & ACQUISITIONS 2020: ADVANCED TRENDS AND DEVELOPMENTS" | D29: PRACTISING LAW INSTITUTE | E29: 2020-01-08 | F29: 2020-01-09 | G29: NEW YORK, NY | H29: 1/8/2020 - 1/9/2020 | I29: PRACTISING LAW INSTITUTE | N29: X | O29: X | R29: 199 | S29: 366 | U29: =SUM(R29:T29) -> 565
A30: JACKSON, ROBERT | B30: COMMISSIONER | C30: RICE UNIVERSITY VISIT | D30: RICE UNIVERSITY | E30: 2020-01-16 | F30: 2020-01-17 | G30: HOUSTON, TX | H30: 1/15/2020 - 1/17/2020 | I30: =D30 -> RICE UNIVERSITY | N30: X | O30: X | R30: 223.95 | S30: 897.38 | U30: 1121.33
A31: HU, EDWIN | B31: COUNSEL TO COMMISSIONER | C31: RICE UNIVERSITY VISIT | D31: RICE UNIVERSITY | E31: 2020-01-16 | F31: 2020-01-17 | G31: HOUSTON, TX | H31: 1/16/2020 - 1/17/2020 | I31: =D31 -> RICE UNIVERSITY | N31: X | O31: X | R31: 212.25 | S31: 392.6 | U31: 604.85
A32: JACKSON, ROBERT | B32: COMMISSIONER | C32: UBC FINANCE SEMINAR | D32: UNIVERSITY OF BRITISH COLUMBIA | E32: 2020-01-30 | F32: 2020-01-31 | G32: VANCOUVER, CANADA | H32: 1/30/2020 - 1/31/2020 | I32: UNIVERSITY OF BRITISH COLUMBIA | N32: X | O32: X | R32: 487 | S32: 400 | U32: 887
A33: JACKSON, ROBERT | B33: COMMISSIONER | C33: UNIVERSITY OF UTAH'S LAW, ECONOMICS & BUSINESS COLLOQUIUM | D33: UNIVERSITY OF UTAH | E33: 2020-02-02 | F33: 2020-02-03 | G33: SALT LAKE CITY, UT | H33: 2/2/2020 - 2/3/2020 | I33: UNIVERSITY OF UTAH | N33: X | O33: X | R33: 467.3 | S33: 430.24 | U33: 897.54
A34: VANOSDALL, JOHN P | B34: DEPUTY CHIEF ACCOUNTANT | C34: ANNUAL SECURITIES REGULATION IN EUROPE | D34: PRACTISING LAW INSTITUTE | E34: 2020-02-06 | F34: 2020-02-07 | G34: LONDON, ENGLAND | H34: 2/6/2020 - 2/7/2020 | I34: PRACTISING LAW INSTITUTE | N34: X | O34: X | R34: 600 | S34: 2604 | U34: 3204
A35: HINMAN, WILLIAM | B35: DIRECTOR | C35: 19TH ANNUAL INSTITUTE ON SECURITIES REGULATION IN EUROPE | D35: PRACTISING LAW INSTITUTE | E35: 2020-02-06 | F35: 2020-02-07 | G35: LONDON, ENGLAND | H35: 2/5/2020 - 2/9/2020 | I35: PRACTISING LAW INSTITUTE | N35: X | O35: X | R35: 608 | S35: 998.68 | U35: 1606.68
A36: BANDY, ANITA | B36: ASSOCIATE DIRECTOR | C36: 19TH ANNUAL INSTITUTE ON SECURITIES REGULATION IN EUROPE | D36: PRACTISING LAW INSTITUTE | E36: 2020-02-06 | F36: 2020-02-07 | G36: LONDON, ENGLAND | H36: 2/4/2020 - 2/9/2020 | I36: PRACTISING LAW INSTITUTE | N36: X | O36: X | R36: 1520 | S36: 872.05 | U36: 2392.05
A37: TEN SIETHOFF, SARAH | B37: ASSOCIATE DIRECTOR | C37: REG BI CONFERENCE | D37: THE UNIVERSITY OF TEXAS AT AUSTIN | E37: 2020-02-10 | F37: 2020-02-11 | G37: AUSTIN, TX | H37: 2/9/2020 - 2/11/2020 | I37: =D37 -> THE UNIVERSITY OF TEXAS AT AUSTIN | O37: X | P37: X | S37: 376 | T37: 100 | U37: =SUM(R37:T37) -> 476
A38: GONZALEZ, LOURDES | B38: ASSISTANT CHIEF COUNSEL - SALES PRACTICES | C38: PROGRAM ON REGULATION BEST INTEREST | D38: PRACTISING LAW INSTITUTE | E38: 2020-02-20 | F38: 2020-02-20 | G38: NEW YORK, NY | H38: 2/19/2020 - 2/20/2020 | I38: =D38 -> PRACTISING LAW INSTITUTE | O38: X | P38: X | S38: 696.81 | T38: 182.6 | U38: =SUM(R38:T38) -> 879.41
A39: JACQUES, MATTHEW | B39: CHIEF ACCOUNTANT | C39: ACCOUNTING FRAUD | D39: THE WHARTON SCHOOL | E39: 2020-03-04 | F39: 2020-03-05 | G39: PHILDELPHIA, PA | H39: 3/4/2020 -3/5/2020 | I39: =D39 -> THE WHARTON SCHOOL | O39: X | S39: 277.52 | U39: =SUM(R39:T39) -> 277.52
A40: AVAKIAN, STEPHANIE | B40: CO-DIRECTOR | C40: SEC ENFORCEMENT | D40: PRINCETON UNIVERSITY | E40: 2020-03-04 | F40: 2020-03-05 | G40: PRINCETON, NJ | H40: 3/4/2020 -3/5/2020 | I40: =D40 -> PRINCETON UNIVERSITY | N40: X | O40: X | P40: X | R40: 172 | S40: 230 | T40: 75 | U40: =SUM(R40:T40) -> 477
A41: TEOTIA, SAGAR | B41: CHIEF ACCOUNTANT | C41: CORPORATE GOVERNANCE | D41: PRACTISING LAW INSTITUTE | E41: 2020-03-06 | F41: 2020-03-06 | G41: NEW YORK, NY | H41: 2020-03-06 | I41: PRACTISING LAW INSTITUTE | N41: X | O41: X | R41: 262 | S41: 498 | U41: 760
